fUST/lending_fUST_20250818
["ID","MTS","AMOUNT","RATE_DAILY","PERIOD"]
[379954971,1755448255418,-151.0,0.00022521,7]
[379954973,1755448255428,-151.0,0.00022521,7]
[379954975,1755448255437,-151.0,0.00022521,7]
[379954977,1755448255446,-731.0,0.00022533,2]
[379954979,1755448255455,-151.903182,0.00022534,7]
[379954981,1755448255467,-321.5711078,0.00022536,2]
[379954983,1755448255476,-160.7855539,0.00022536,2]
[379954985,1755448255485,-160.7855539,0.00022536,2]
[379954987,1755448255495,-321.3738511,0.00022536,2]
[379954989,1755448255504,-438.8801017,0.00022536,2]
[379954991,1755448255512,-293.7943279,0.00022536,2]
[379954993,1755448255522,-2351.0,0.0002255,2]
[379954995,1755448255532,-731.0,0.00022582,2]
[379954997,1755448255542,-731.0,0.00022582,2]
[379954999,1755448255551,-12682.46447135,0.0002259,10]
[379955001,1755448255560,-205.658192,0.0002259,7]
[379955003,1755448255570,-272.351542,0.0002259,7]
[379955005,1755448255579,-272.351542,0.0002259,7]
[379955007,1755448255588,-151.0,0.0002259,7]
[379955009,1755448255597,-151.0,0.000226,7]
[379955011,1755448255606,-12682.46447135,0.000226,7]
[379955013,1755448255615,-157.081155,0.000226,5]
[379955015,1755448255624,-158.985551,0.000226,5]
[379955017,1755448255633,-151.903182,0.000226,5]
[379955019,1755448255642,-215.71995163,0.000226,10]
[379955021,1755448255651,-417.15472785,0.000226,10]
[379955023,1755448255661,-375.77065697,0.000226,10]
[379955025,1755448255669,-400.0,0.00022603,2]
[379955027,1755448255679,-731.0,0.0002264,2]
[379955029,1755448255689,-2500.0,0.00022664,2]
[379955031,1755448255698,-560.0,0.00022681,2]
[379955033,1755448255707,-11514.83412447,0.00022693,2]
[379955035,1755448255716,-2442.14227645,0.00022739,2]
[379955037,1755448255725,-8024.00771853,0.00022739,7]
[379955039,1755448255734,-151.0,0.00022739,7]
[379955041,1755448255743,-480.0,0.00022739,2]
[379955043,1755448255752,-480.0,0.00022739,2]
[379955045,1755448255761,-480.0,0.00022739,2]
[379955047,1755448255771,-500.0,0.00022739,2]
[379955049,1755448255780,-3448.83,0.00022739,2]
[379955051,1755448255790,-4387.99,0.00022739,2]
[379955053,1755448255799,-872.21,0.00022739,2]
[379955055,1755448255809,-818.67,0.00022739,2]
[379955057,1755448255818,-480.0,0.00022739,2]
[379955059,1755448255827,-518.22,0.00022739,2]
[379955061,1755448255836,-2455.91,0.00022739,2]
[379955063,1755448255846,-1139.38,0.00022739,2]
[379955065,1755448255855,-647.76,0.00022739,2]
[379955067,1755448255864,-480.0,0.00022739,2]
[379955069,1755448255873,-562.78,0.00022739,2]
[379955071,1755448255882,-201.560082,0.00022739,7]
[379955073,1755448255892,-201.560082,0.00022739,7]
[379955075,1755448255901,-155.042978,0.00022739,7]
[379955076,1755448255911,-155.042978,0.00022739,7]
[379955078,1755448255920,-556.15,0.00022739,2]
[379955080,1755448255929,-2039.25,0.00022739,2]
[379955082,1755448255938,-151.0,0.00022739,7]
[379955084,1755448255947,-480.0,0.00022739,2]
[379955086,1755448255956,-3508.85,0.00022739,2]
[379955088,1755448255965,-227.885158,0.00022739,7]
[379955090,1755448255975,-227.885158,0.00022739,7]
[379955092,1755448255984,-1134.0,0.00022739,2]
[379955094,1755448255993,-833.33,0.00022739,2]
[379955096,1755448256003,-1081.66,0.00022739,2]
[379955098,1755448256012,-2152.56,0.00022739,2]
[379955100,1755448256021,-1507.0,0.0002274,2]
[379955101,1755448256030,-731.0,0.00022792,2]
[379955102,1755448256040,-151.903182,0.00022801,7]
[379955103,1755448256049,-375.7,0.00022803,4]
[379955104,1755448256058,-209.0,0.0002281,2]
[379955105,1755448256067,-500.0,0.00022835,2]
[379955106,1755448256075,-731.0,0.00022843,2]
[379955107,1755448256084,-188.756216,0.00022868,7]
[379955108,1755448256093,-188.756216,0.00022868,7]
[379955109,1755448256102,-273.959632,0.00022868,7]
[379955110,1755448256111,-221.488623,0.00022868,7]
[379955111,1755448256119,-233.026698,0.00022868,7]
[379955112,1755448256128,-151.0,0.00022868,7]
[379955113,1755448256137,-151.0,0.00022868,7]
[379955114,1755448256146,-151.0,0.00022868,7]
[379955116,1755448256155,-151.0,0.00022868,7]
[379955118,1755448256165,-151.0,0.00022868,7]
[379955120,1755448256174,-153.0,0.00022877,2]
[379955122,1755448256183,-1352.76072179,0.00022889,72]
[379955124,1755448256192,-2000.0,0.000229,2]
[379955126,1755448256201,-215.71995163,0.000229,7]
[379955128,1755448256210,-160.0,0.000229,7]
[379955130,1755448256219,-417.15472785,0.000229,7]
[379955132,1755448256229,-375.77065697,0.000229,7]
[379955134,1755448256238,-12834.05187528,0.0002292,2]
[379955136,1755448256247,-4427.95191794,0.00022932,2]
[379955138,1755448256256,-5684.2530566,0.00022932,2]
[379955140,1755448256265,-5000.0,0.00022932,2]
[379955142,1755448256274,-5000.0,0.00022932,2]
[379955144,1755448256283,-5000.0,0.00022932,2]
[379955146,1755448256293,-5000.0,0.00022932,2]
[379955148,1755448256302,-5000.0,0.00022932,2]
[379955149,1755448256313,-5000.0,0.00022932,2]
[379955151,1755448256322,-151.0,0.00022932,7]
[379955153,1755448256333,-151.0,0.00022932,7]
[379955155,1755448256347,-925.340388,0.00022932,7]
[379955157,1755448256356,-925.340388,0.00022932,7]
[379955159,1755448256366,-151.0,0.00022932,7]
[379955161,1755448256376,-671.036878,0.00022932,7]
[379955163,1755448256385,-671.036878,0.00022932,7]
[379955165,1755448256394,-176.885252,0.00022932,7]
[379955167,1755448256404,-176.885252,0.00022932,7]
[379955169,1755448256414,-151.0,0.00022932,7]
[379955171,1755448256423,-151.0,0.00022932,7]
[379955172,1755448256432,-151.0,0.00022932,7]
[379955173,1755448256442,-151.0,0.00022932,7]
[379955174,1755448256450,-151.0,0.00022932,7]
[379955175,1755448256460,-151.0,0.00022932,7]
[379955176,1755448256469,-731.0,0.00022939,2]
[379955177,1755448256477,-3500.0,0.0002296,2]
[379955178,1755448256486,-3500.0,0.0002296,2]
[379955179,1755448256495,-3500.0,0.0002296,2]
[379955180,1755448256504,-2000.0,0.00022991,2]
[379955181,1755448256513,-2000.0,0.00022991,2]
[379955182,1755448256522,-1000.0,0.00022991,2]
[379955183,1755448256531,-2000.0,0.00022991,2]
[379955184,1755448256541,-1414.74784878,0.00022991,2]
[379955185,1755448256550,-2000.0,0.00022991,2]
[379955186,1755448256560,-2000.0,0.00022991,2]
[379955187,1755448256568,-2000.0,0.00022991,2]
[379955188,1755448256577,-2004.09150484,0.00022991,2]
[379955189,1755448256586,-2000.0,0.00022991,2]
[379955190,1755448256596,-28152.78,0.00023,7]
[379955191,1755448256604,-12682.46447135,0.00023,7]
[379955192,1755448256613,-160.0,0.00023,3]
[379955193,1755448256622,-160.0,0.00023,2]
[379955194,1755448256631,-151.0,0.00023,7]
[379955195,1755448256640,-272.351542,0.00023,7]
[379955196,1755448256649,-272.351542,0.00023,7]
[379955197,1755448256657,-151.0,0.00023,7]
[379955198,1755448256666,-209.157061,0.00023,7]
[379955199,1755448256675,-209.157061,0.00023,7]
[379955200,1755448256684,-151.0,0.00023,7]
[379955201,1755448256693,-160.0,0.00023,3]
[379955202,1755448256702,-528.48506731,0.00023,3]
[379955203,1755448256711,-160.0,0.00023,3]
[379955204,1755448256719,-216.83204348,0.00023,3]
[379955205,1755448256728,-160.0,0.00023,3]
[379955206,1755448256737,-164.0,0.00023,7]
[379955207,1755448256746,-160.0,0.00023,3]
[379955208,1755448256755,-160.0,0.00023,3]
[379955209,1755448256764,-232.1512529,0.00023,3]
[379955210,1755448256772,-843.71309931,0.00023,3]
[379955211,1755448256782,-350.8697943,0.00023013,2]
[379955212,1755448256792,-480.0,0.00023013,2]
[379955213,1755448256801,-480.0,0.00023013,2]
[379955214,1755448256811,-500.0,0.00023013,2]
[379955215,1755448256820,-3448.83,0.00023013,2]
[379955216,1755448256829,-4387.99,0.00023013,2]
[379955217,1755448256838,-872.21,0.00023013,2]
[379955218,1755448256847,-818.67,0.00023013,2]
[379955219,1755448256856,-480.0,0.00023013,2]
[379955220,1755448256865,-518.22,0.00023013,2]
[379955221,1755448256874,-2455.91,0.00023013,2]
[379955222,1755448256883,-1139.38,0.00023013,2]
[379955223,1755448256892,-647.76,0.00023013,2]
[379955224,1755448256901,-480.0,0.00023013,2]
[379955225,1755448256909,-562.78,0.00023013,2]
[379955226,1755448256918,-201.560082,0.00023013,7]
[379955227,1755448256927,-201.560082,0.00023013,7]
[379955228,1755448256936,-155.042978,0.00023013,7]
[379955229,1755448256945,-155.042978,0.00023013,7]
[379955230,1755448256954,-556.15,0.00023013,2]
[379955231,1755448256963,-2039.25,0.00023013,2]
[379955232,1755448256972,-151.0,0.00023013,7]
[379955233,1755448256982,-480.0,0.00023013,2]
[379955234,1755448256992,-3508.85,0.00023013,2]
[379955235,1755448257001,-227.885158,0.00023013,7]
[379955236,1755448257011,-227.885158,0.00023013,7]
[379955237,1755448257020,-1134.0,0.00023013,2]
[379955238,1755448257029,-833.33,0.00023013,2]
[379955239,1755448257039,-1081.66,0.00023013,2]
[379955240,1755448257048,-2152.56,0.00023013,2]
[379955241,1755448257057,-250.0,0.00023014,7]
[379955242,1755448257066,-1507.0,0.00023014,2]
[379955243,1755448257075,-151.0,0.00023014,7]
[379955244,1755448257084,-160.0,0.00023043,6]
[379955245,1755448257094,-163.27558796,0.00023043,5]
[379955246,1755448257103,-160.0,0.00023043,5]
[379955247,1755448257112,-1000.0,0.00023044,2]
[379955248,1755448257121,-762.72319095,0.00023044,2]
[379955249,1755448257131,-2000.0,0.00023044,2]
[379955250,1755448257249,-766.90847773,0.00023044,2]
[379955251,1755448257259,-1000.0,0.00023047,2]
[379955253,1755448257268,-188.756216,0.00023068,7]
[379955254,1755448257278,-188.756216,0.00023068,7]
[379955255,1755448257286,-151.0,0.00023068,7]
[379955256,1755448257296,-151.0,0.00023068,7]
[379955257,1755448257305,-151.0,0.00023068,7]
[379955259,1755448257314,-151.0,0.00023068,7]
[379955261,1755448257323,-157.081155,0.00023068,7]
[379955262,1755448257335,-151.0,0.00023068,7]
[379955263,1755448257344,-151.903182,0.00023068,7]
[379955264,1755448257353,-1500.0,0.00023068,2]
[379955265,1755448257363,-1094.43579841,0.00023068,2]
[379955266,1755448257374,-466.72268674,0.00023068,2]
[379955267,1755448257383,-1500.0,0.00023068,2]
[379955268,1755448257393,-344.40837171,0.00023068,2]
[379955269,1755448257402,-376.48468622,0.00023068,2]
[379955270,1755448257414,-700.0,0.000231,2]
[379955271,1755448257425,-209.0,0.000231,2]
[379955272,1755448257434,-207.0,0.000231,2]
[379955273,1755448257443,-206.0,0.000231,2]
[379955274,1755448257452,-55799.86,0.000231,2]
[379955275,1755448257462,-8188.31,0.000231,7]
[379955276,1755448257471,-206.0,0.000231,2]
[379955277,1755448257480,-206.0,0.000231,2]
[379955278,1755448257489,-206.0,0.000231,2]
[379955279,1755448257498,-206.0,0.000231,2]
[379955280,1755448257507,-177.787584,0.000231,7]
[379955281,1755448257516,-375.7,0.000231,4]
[379955282,1755448257525,-925.340388,0.000231,7]
[379955283,1755448257534,-925.340388,0.000231,7]
[379955284,1755448257545,-151.0,0.000231,7]
[379955285,1755448257554,-671.036878,0.000231,7]
[379955286,1755448257563,-671.036878,0.000231,7]
[379955287,1755448257573,-176.885252,0.000231,7]
[379955288,1755448257582,-176.885252,0.000231,7]
[379955289,1755448257591,-151.0,0.000231,7]
[379955290,1755448257600,-151.0,0.000231,7]
[379955291,1755448257610,-151.0,0.000231,7]
[379955292,1755448257619,-245.486928,0.000231,7]
[379955293,1755448257628,-648.2564,0.000231,2]
[379955294,1755448257637,-648.2564,0.000231,2]
[379955295,1755448257646,-151.0,0.000231,7]
[379955296,1755448257655,-151.0,0.000231,7]
[379955297,1755448257665,-954.13,0.00023101,2]
[379955298,1755448257677,-731.0,0.00023106,2]
[379955299,1755448257700,-151.903182,0.0002314,3]
[379955300,1755448257738,-1161.3520884,0.00023178,2]
[379955301,1755448257757,-864.0,0.000232,20]
[379955302,1755448257766,-3000.0,0.00023212,2]
[379955303,1755448257775,-660.0,0.00023229,2]
[379955304,1755448257785,-209.157061,0.00023232,7]
[379955305,1755448257795,-209.157061,0.00023232,7]
[379955306,1755448257805,-151.0,0.00023232,7]
[379955307,1755448257814,-272.351542,0.00023287,7]
[379955308,1755448257823,-272.351542,0.00023287,7]
[379955309,1755448257833,-159.41549791,0.00023287,2]
[379955310,1755448257842,-480.0,0.00023287,2]
[379955311,1755448257851,-500.0,0.00023287,2]
[379955312,1755448257860,-3448.83,0.00023287,2]
[379955313,1755448257869,-4387.99,0.00023287,2]
[379955314,1755448257878,-872.21,0.00023287,2]
[379955315,1755448257887,-818.67,0.00023287,2]
[379955316,1755448257896,-480.0,0.00023287,2]
[379955317,1755448257905,-518.22,0.00023287,2]
[379955318,1755448257914,-2455.91,0.00023287,2]
[379955319,1755448257923,-1139.38,0.00023287,2]
[379955320,1755448257931,-647.76,0.00023287,2]
[379955321,1755448257940,-480.0,0.00023287,2]
[379955322,1755448257949,-562.78,0.00023287,2]
[379955323,1755448257958,-201.560082,0.00023287,7]
[379955324,1755448257967,-201.560082,0.00023287,7]
[379955325,1755448257976,-155.042978,0.00023287,7]
[379955326,1755448257984,-155.042978,0.00023287,7]
[379955327,1755448257993,-556.15,0.00023287,2]
[379955328,1755448258002,-2039.25,0.00023287,2]
[379955329,1755448258012,-151.0,0.00023287,7]
[379955330,1755448258021,-480.0,0.00023287,2]
[379955331,1755448258030,-3508.85,0.00023287,2]
[379955332,1755448258039,-227.885158,0.00023287,7]
[379955333,1755448258048,-227.885158,0.00023287,7]
[379955334,1755448258057,-1134.0,0.00023287,2]
[379955335,1755448258066,-833.33,0.00023287,2]
[379955336,1755448258075,-1081.66,0.00023287,2]
[379955337,1755448258083,-2152.56,0.00023287,2]
[379955338,1755448258093,-634.5985,0.00023288,2]
[379955339,1755448258102,-151.0,0.00023288,7]
[379955340,1755448258112,-151.0,0.00023288,7]
[379955341,1755448258121,-151.0,0.00023288,7]
[379955342,1755448258130,-151.0,0.00023288,7]
[379955343,1755448258139,-245.0,0.00023288,7]
[379955344,1755448258148,-600.0,0.00023288,2]
[379955345,1755448258157,-1507.0,0.00023288,2]
[379955346,1755448258166,-293.7943279,0.00023357,2]
[379955347,1755448258176,-293.7943279,0.00023357,2]
[379955348,1755448258185,-293.7943279,0.00023357,2]
[379955349,1755448258194,-293.7943279,0.00023357,2]
[379955350,1755448258203,-293.7943279,0.00023357,2]
[379955351,1755448258212,-587.5886558,0.00023357,2]
[379955352,1755448258221,-293.7943279,0.00023357,2]
[379955353,1755448258230,-293.7943279,0.00023357,2]
[379955354,1755448258239,-293.7943279,0.00023357,2]
[379955355,1755448258248,-153.0,0.00023358,2]
[379955356,1755448258257,-266.4806457,0.00023358,2]
[379955357,1755448258266,-500.0,0.00023383,2]
[379955358,1755448258275,-731.0,0.0002342,2]
[379955359,1755448258284,-12834.05187528,0.00023423,2]
[379955360,1755448258293,-11514.83412447,0.00023442,2]
[379955361,1755448258302,-150.0,0.00023473,2]
[379955362,1755448258311,-151.903182,0.00023476,2]
[379955363,1755448258321,-114940.9374612,0.000235,14]
[379955364,1755448258331,-1000.0,0.000235,2]
[379955365,1755448258345,-500.0,0.000235,2]
[379955366,1755448258355,-500.0,0.000235,2]
[379955367,1755448258364,-1000.0,0.000235,2]
[379955368,1755448258373,-32888.5650371,0.000235,14]
[379955369,1755448258384,-233.394478,0.000235,7]
[379955370,1755448258393,-188.756216,0.000235,7]
[379955371,1755448258403,-188.756216,0.000235,7]
[379955372,1755448258413,-151.0,0.000235,7]
[379955373,1755448258423,-151.0,0.000235,7]
[379955374,1755448258433,-151.0,0.000235,7]
[379955375,1755448258442,-226.291144,0.000235,7]
[379955376,1755448258453,-151.0,0.000235,7]
[379955377,1755448258463,-272.351542,0.000235,7]
[379955378,1755448258475,-272.351542,0.000235,7]
[379955379,1755448258486,-209.157061,0.000235,7]
[379955380,1755448258496,-209.157061,0.000235,7]
[379955381,1755448258506,-222.813916,0.000235,7]
[379955382,1755448258515,-925.340388,0.000235,7]
[379955383,1755448258525,-925.340388,0.000235,7]
[379955384,1755448258535,-151.0,0.000235,7]
[379955385,1755448258544,-671.036878,0.000235,7]
[379955386,1755448258554,-671.036878,0.000235,7]
[379955387,1755448258563,-176.885252,0.000235,7]
[379955388,1755448258572,-176.885252,0.000235,7]
[379955389,1755448258582,-151.0,0.000235,7]
[379955390,1755448258591,-251.8,0.000235,7]
[379955391,1755448258601,-151.0,0.000235,7]
[379955392,1755448258610,-151.0,0.000235,7]
[379955393,1755448258619,-201.560082,0.000235,7]
[379955394,1755448258629,-201.560082,0.000235,7]
[379955396,1755448258641,-155.042978,0.000235,7]
[379955398,1755448258650,-155.042988,0.000235,7]
[379955400,1755448258663,-153.471945,0.000235,7]
[379955402,1755448258672,-227.885158,0.000235,7]
[379955404,1755448258682,-227.88516,0.000235,7]
[379955406,1755448258692,-4000.0,0.00023508,2]
[379955408,1755448258701,-4000.0,0.00023508,2]
[379955410,1755448258710,-4000.0,0.00023508,2]
[379955412,1755448258721,-2500.0,0.00023539,2]
[379955414,1755448258731,-2500.0,0.00023539,2]
[379955416,1755448258741,-508.92533935,0.00023539,2]
[379955418,1755448258750,-2500.0,0.00023539,2]
[379955420,1755448258761,-2500.0,0.00023539,2]
[379955422,1755448258770,-189.89681487,0.00023539,2]
[379955424,1755448258781,-1517.4381018,0.00023539,2]
[379955426,1755448258792,-480.0,0.00023561,2]
[379955428,1755448258801,-500.0,0.00023561,2]
[379955430,1755448258810,-3448.83,0.00023561,2]
[379955432,1755448258820,-4387.99,0.00023561,2]
[379955434,1755448258831,-872.21,0.00023561,2]
[379955436,1755448258840,-818.67,0.00023561,2]
[379955438,1755448258849,-480.0,0.00023561,2]
[379955440,1755448258858,-518.22,0.00023561,2]
[379955442,1755448258868,-2455.91,0.00023561,2]
[379955444,1755448258877,-647.76,0.00023561,2]
[379955446,1755448258886,-1139.38,0.00023561,2]
[379955448,1755448258896,-480.0,0.00023561,2]
[379955450,1755448258906,-562.78,0.00023561,2]
[379955452,1755448258915,-556.15,0.00023561,2]
[379955454,1755448258924,-2039.25,0.00023561,2]
[379955456,1755448258933,-480.0,0.00023561,2]
[379955458,1755448258942,-3508.85,0.00023561,2]
[379955460,1755448258951,-1134.0,0.00023561,2]
[379955462,1755448258961,-833.33,0.00023561,2]
[379955464,1755448258970,-1081.66,0.00023561,2]
[379955466,1755448258979,-2152.56,0.00023561,2]
[379955468,1755448258989,-1507.0,0.00023562,2]
[379955470,1755448258998,-150.0,0.00023573,2]
[379955472,1755448259008,-215.5453161,0.00023573,2]
[379955473,1755448259017,-157.20163234,0.00023573,2]
[379955475,1755448259027,-150.0,0.00023573,2]
[379955477,1755448259036,-1000.59700305,0.00023573,2]
[379955479,1755448259045,-151.903182,0.0002358,15]
[379955481,1755448259054,-2500.0,0.00023592,2]
[379955483,1755448259064,-200.0,0.00023599,2]
[379955485,1755448259073,-110860.14999902,0.000236,2]
[379955487,1755448259082,-163.11,0.000236,7]
[379955489,1755448259092,-41851.60775637,0.000236,2]
[379955491,1755448259101,-188.756216,0.000236,7]
[379955493,1755448259110,-188.756216,0.000236,7]
[379955495,1755448259119,-151.0,0.000236,7]
[379955497,1755448259130,-151.0,0.000236,7]
[379955499,1755448259140,-151.0,0.000236,7]
[379955501,1755448259150,-151.0,0.000236,7]
[379955503,1755448259159,-272.351542,0.000236,7]
[379955505,1755448259168,-272.351532,0.000236,7]
[379955507,1755448259177,-209.157061,0.000236,7]
[379955509,1755448259186,-209.157067,0.000236,7]
[379955511,1755448259196,-925.340388,0.000236,7]
[379955513,1755448259206,-925.34038804,0.000236,7]
[379955515,1755448259215,-151.0,0.000236,7]
[379955517,1755448259224,-671.036878,0.000236,7]
[379955519,1755448259234,-671.036886,0.000236,7]
[379955521,1755448259243,-176.885252,0.000236,7]
[379955523,1755448259253,-176.885242,0.000236,7]
[379955525,1755448259262,-151.0,0.000236,7]
[379955527,1755448259272,-151.0,0.000236,7]
[379955528,1755448259281,-151.0,0.000236,7]
[379955530,1755448259290,-431.9864578,0.00023606,2]
[379955532,1755448259302,-2000.0,0.00023616,2]
[379955534,1755448259312,-509.90902439,0.00023616,2]
[379955536,1755448259322,-431.9864578,0.00023649,2]
[379955538,1755448259332,-1840.95747202,0.000237,30]
[379955540,1755448259346,-203.0,0.0002372,8]
[379955542,1755448259356,-150.0,0.00023721,2]
[379955544,1755448259366,-868.2391821,0.00023724,2]
[379955546,1755448259375,-17807.17992607,0.00023747,2]
[379955548,1755448259386,-17807.17992607,0.00023751,2]
[379955550,1755448259396,-868.2391821,0.00023757,2]
[379955552,1755448259406,-757.9538305,0.0002376,2]
[379955554,1755448259415,-760.0,0.00023777,2]
[379955556,1755448259426,-202.82764487,0.00023835,2]
[379955558,1755448259436,-500.0,0.00023835,2]
[379955560,1755448259445,-3448.83,0.00023835,2]
[379955562,1755448259455,-4387.99,0.00023835,2]
[379955564,1755448259464,-872.21,0.00023835,2]
[379955566,1755448259473,-818.67,0.00023835,2]
[379955568,1755448259483,-480.0,0.00023835,2]
[379955570,1755448259492,-518.22,0.00023835,2]
[379955572,1755448259502,-2455.91,0.00023835,2]
[379955573,1755448259512,-647.76,0.00023835,2]
[379955575,1755448259522,-1139.38,0.00023835,2]
[379955577,1755448259532,-578.24457559,0.00023835,2]
[379955579,1755448259542,-562.78,0.00023835,2]
[379955581,1755448259552,-556.15,0.00023835,2]
[379955583,1755448259562,-2039.25,0.00023835,2]
[379955585,1755448259571,-344.52801367,0.00023835,2]
[379955587,1755448259581,-3508.85,0.00023835,2]
[379955589,1755448259590,-1134.0,0.00023835,2]
[379955591,1755448259600,-833.33,0.00023835,2]
[379955593,1755448259609,-1081.66,0.00023835,2]
[379955595,1755448259618,-2152.56,0.00023835,2]
[379955597,1755448259627,-1507.0,0.00023836,2]
[379955599,1755448259638,-157.081155,0.00023868,3]
[379955601,1755448259647,-158.985551,0.00023868,3]
[379955603,1755448259656,-151.903182,0.00023868,3]
[379955605,1755448259665,-505.87857196,0.00023869,2]
[379955607,1755448259674,-987.0,0.000239,2]
[379955609,1755448259683,-12834.05187528,0.00023926,2]
[379955611,1755448259692,-500.0,0.00023931,2]
[379955612,1755448259701,-759.59674897,0.00023973,2]
[379955614,1755448259710,-150.0,0.00023987,2]
[379955616,1755448259719,-150.0,0.00023987,2]
[379955618,1755448259728,-200.0,0.00023999,2]
[379955620,1755448259738,-1701.15597039,0.00024,2]
[379955622,1755448259747,-17428.03453314,0.00024,14]
[379955624,1755448259757,-1024.85417014,0.00024,7]
[379955626,1755448259766,-843.58077381,0.00024,7]
[379955628,1755448259776,-523.38,0.00024,14]
[379955630,1755448259785,-455.97858933,0.00024,2]
[379955632,1755448259796,-160.0,0.00024,7]
[379955634,1755448259805,-28152.78,0.00024,7]
[379955636,1755448259814,-160.0,0.00024,7]
[379955638,1755448259823,-160.0,0.00024,10]
[379955640,1755448259833,-188.756216,0.00024,7]
[379955653,1755448259946,-188.756212,0.00024,7]
[379955655,1755448259956,-151.0,0.00024,7]
[379955657,1755448259965,-154.658264,0.00024,7]
[379955659,1755448259976,-151.0,0.00024,7]
[379955661,1755448259985,-151.0,0.00024,7]
[379955663,1755448259995,-160.0,0.00024,7]
[379955665,1755448260004,-160.0,0.00024,10]
[379955667,1755448260014,-528.48506731,0.00024,7]
[379955669,1755448260024,-528.48506731,0.00024,10]
[379955671,1755448260034,-160.0,0.00024,7]
[379955673,1755448260045,-216.83204348,0.00024,7]
[379955675,1755448260055,-216.83204348,0.00024,10]
[379955677,1755448260065,-215.71995163,0.00024,3]
[379955679,1755448260075,-160.0,0.00024,7]
[379955681,1755448260085,-160.0,0.00024,10]
[379955683,1755448260095,-160.0,0.00024,7]
[379955685,1755448260105,-160.0,0.00024,10]
[379955687,1755448260115,-160.0,0.00024,7]
[379955689,1755448260125,-160.0,0.00024,10]
[379955691,1755448260134,-232.1512529,0.00024,7]
[379955693,1755448260145,-232.1512529,0.00024,10]
[379955696,1755448260155,-843.71309931,0.00024,7]
[379955698,1755448260165,-843.71309931,0.00024,10]
[379955700,1755448260176,-300.0,0.00024021,2]
[379955702,1755448260185,-1144.96,0.00024025,2]
[379955704,1755448260196,-4500.0,0.00024056,2]
[379955706,1755448260206,-4500.0,0.00024056,2]
[379955708,1755448260216,-4500.0,0.00024056,2]
[379955710,1755448260226,-972.0,0.00024068,2]
[379955712,1755448260236,-2153.0,0.00024068,2]
[379955714,1755448260245,-637.0,0.00024068,2]
[379955716,1755448260255,-408.0,0.00024068,2]
[379955718,1755448260264,-408.0,0.00024068,2]
[379955720,1755448260274,-3000.0,0.00024087,2]
[379955722,1755448260283,-3000.0,0.00024087,2]
[379955724,1755448260292,-3000.0,0.00024087,2]
[379955726,1755448260302,-365.59715471,0.00024087,2]
[379955728,1755448260311,-500.0,0.00024109,2]
[379955730,1755448260320,-3448.83,0.00024109,2]
[379955732,1755448260330,-4387.99,0.00024109,2]
[379955733,1755448260344,-872.21,0.00024109,2]
[379955735,1755448260355,-818.67,0.00024109,2]
[379955737,1755448260364,-480.0,0.00024109,2]
[379955739,1755448260374,-518.22,0.00024109,2]
[379955741,1755448260385,-2455.91,0.00024109,2]
[379955743,1755448260395,-647.76,0.00024109,2]